[Event "Early-Titled-Tuesday-Blitz-February-27-2024"]
[Site "Chess.com"]
[Date "2024.02.27"]
[Round "4"]
[White "ritanovikova"]
[Black "Fernando_Offermann"]
[Result "0-1"]
[WhiteElo "2232"]
[BlackElo "2489"]
[TimeControl "180+1"]
[EndTime "8:33:25 PST"]
[Termination "Fernando_Offermann won by resignation"]

1. e4 {[%clk 0:02:54.8]} 1... c5 {[%clk 0:03:00]} 2. Nc3 {[%clk 0:02:54.9]} 2...
d6 {[%clk 0:02:58.7]} 3. d3 {[%clk 0:02:55.1]} 3... g6 {[%clk 0:02:58.7]} 4. g3
{[%clk 0:02:55.6]} 4... Bg7 {[%clk 0:02:59.3]} 5. Be3 {[%clk 0:02:56.2]} 5...
Nc6 {[%clk 0:03:00]} 6. Qd2 {[%clk 0:02:56.1]} 6... f5 {[%clk 0:02:58.1]} 7. Bg2
{[%clk 0:02:55.3]} 7... Nf6 {[%clk 0:02:56]} 8. Bh6 {[%clk 0:02:54.7]} 8... O-O
{[%clk 0:02:56]} 9. h4 {[%clk 0:02:54.6]} 9... Nd4 {[%clk 0:02:48.9]} 10. O-O-O
{[%clk 0:02:53]} 10... Bxh6 {[%clk 0:02:47.7]} 11. Qxh6 {[%clk 0:02:52.2]} 11...
Ng4 {[%clk 0:02:48.3]} 12. Qd2 {[%clk 0:02:50.5]} 12... h5 {[%clk 0:02:47.8]}
13. f3 {[%clk 0:02:50.1]} 13... Ne5 {[%clk 0:02:46.6]} 14. Qg5 {[%clk
0:02:29.2]} 14... Kh7 {[%clk 0:02:42.6]} 15. g4 {[%clk 0:02:23.4]} 15... fxg4
{[%clk 0:02:40.6]} 16. f4 {[%clk 0:02:11.2]} 16... Ne6 {[%clk 0:02:37.7]} 17.
fxe5 {[%clk 0:02:05]} 17... Nxg5 {[%clk 0:02:37.8]} 18. hxg5 {[%clk 0:02:05.9]}
18... dxe5 {[%clk 0:02:33.4]} 19. Nge2 {[%clk 0:02:05.5]} 19... e6 {[%clk
0:02:33.7]} 20. Ng3 {[%clk 0:02:00.7]} 20... Qxg5+ {[%clk 0:02:33.7]} 21. Kb1
{[%clk 0:02:00.5]} 21... Bd7 {[%clk 0:02:31]} 0-1

[Event "Early-Titled-Tuesday-Blitz-February-27-2024"]
[Site "Chess.com"]
[Date "2024.02.27"]
[Round "4"]
[White "sathvikadiga"]
[Black "tsaruk_maks"]
[Result "0-1"]
[WhiteElo "2549"]
[BlackElo "2758"]
[TimeControl "180+1"]
[EndTime "8:33:47 PST"]
[Termination "tsaruk_maks won by checkmate"]

1. d4 {[%clk 0:03:00.8]} 1... d6 {[%clk 0:02:59.5]} 2. Nc3 {[%clk 0:03:00.3]}
2... Nf6 {[%clk 0:02:59.7]} 3. e4 {[%clk 0:03:00.7]} 3... e5 {[%clk 0:03:00.4]}
4. dxe5 {[%clk 0:03:00.4]} 4... dxe5 {[%clk 0:03:00.5]} 5. Qxd8+ {[%clk
0:03:01.3]} 5... Kxd8 {[%clk 0:03:00.9]} 6. Bc4 {[%clk 0:03:01.4]} 6... Bb4
{[%clk 0:03:01.3]} 7. Bd2 {[%clk 0:02:59.4]} 7... Ke8 {[%clk 0:02:59.1]} 8.
O-O-O {[%clk 0:02:59.1]} 8... c6 {[%clk 0:02:59.2]} 9. Nf3 {[%clk 0:02:57.6]}
9... Bg4 {[%clk 0:02:57]} 10. Nxe5 {[%clk 0:02:20.7]} 10... Bxd1 {[%clk
0:02:56.2]} 11. Rxd1 {[%clk 0:02:12.9]} 11... Rf8 {[%clk 0:02:55.5]} 12. a3
{[%clk 0:02:11]} 12... Bd6 {[%clk 0:02:52.7]} 13. Bf4 {[%clk 0:02:03.5]} 13...
Bc7 {[%clk 0:02:43.6]} 14. Nxc6 {[%clk 0:02:00.3]} 14... Bxf4+ {[%clk 0:02:41]}
15. Kb1 {[%clk 0:01:58.8]} 15... Nxc6 {[%clk 0:02:41.6]} 16. g3 {[%clk
0:01:57.8]} 16... Be5 {[%clk 0:02:40.4]} 17. Nb5 {[%clk 0:01:56.1]} 17... a6
{[%clk 0:02:40.2]} 18. Nd6+ {[%clk 0:01:52.2]} 18... Bxd6 {[%clk 0:02:40.7]} 19.
Rxd6 {[%clk 0:01:52.8]} 19... Rd8 {[%clk 0:02:41.4]} 20. e5 {[%clk 0:01:53]}
20... Nxe5 {[%clk 0:02:40.8]} 21. Rb6 {[%clk 0:01:52.5]} 21... Nxc4 {[%clk
0:02:39.3]} 22. Rxb7 {[%clk 0:01:53.2]} 22... Rd7 {[%clk 0:02:39.3]} 23. Rb8+
{[%clk 0:01:53.2]} 23... Ke7 {[%clk 0:02:40.2]} 24. Rb4 {[%clk 0:01:53.2]} 24...
Rc8 {[%clk 0:02:40.8]} 25. b3 {[%clk 0:01:52.8]} 25... Nxa3+ {[%clk 0:02:40.3]}
26. Kb2 {[%clk 0:01:53.4]} 26... Nxc2 {[%clk 0:02:39.2]} 27. Rf4 {[%clk
0:01:53.9]} 27... Rd2 {[%clk 0:02:39.1]} 28. Kc1 {[%clk 0:01:53.9]} 28... Rd3
{[%clk 0:02:35]} 29. Kb2 {[%clk 0:01:53.8]} 29... Nd4 {[%clk 0:02:34.2]} 30. b4
{[%clk 0:01:53.7]} 30... Rc2+ {[%clk 0:02:34.2]} 31. Ka1 {[%clk 0:01:54.6]}
31... Rd1# {[%clk 0:02:34.8]} 0-1

[Event "Early-Titled-Tuesday-Blitz-February-27-2024"]
[Site "Chess.com"]
[Date "2024.02.27"]
[Round "4"]
[White "MANOJ_MISHRA123"]
[Black "Chess4always"]
[Result "1-0"]
[WhiteElo "2261"]
[BlackElo "1959"]
[TimeControl "180+1"]
[EndTime "8:34:00 PST"]
[Termination "MANOJ_MISHRA123 won by resignation"]

1. d4 {[%clk 0:03:00.9]} 1... d5 {[%clk 0:02:57.4]} 2. Nc3 {[%clk 0:02:58.6]}
2... c6 {[%clk 0:02:56.1]} 3. Bf4 {[%clk 0:02:58.4]} 3... Bf5 {[%clk 0:02:54.9]}
4. e3 {[%clk 0:02:58.1]} 4... Nf6 {[%clk 0:02:55]} 5. f3 {[%clk 0:02:56.4]} 5...
Nbd7 {[%clk 0:02:54.5]} 6. g4 {[%clk 0:02:55.7]} 6... Bg6 {[%clk 0:02:54.3]} 7.
h4 {[%clk 0:02:56.3]} 7... h5 {[%clk 0:02:54.9]} 8. g5 {[%clk 0:02:54.9]} 8...
Ng8 {[%clk 0:02:54.4]} 9. Bd3 {[%clk 0:02:54.9]} 9... Bxd3 {[%clk 0:02:54.9]}
10. Qxd3 {[%clk 0:02:54.3]} 10... g6 {[%clk 0:02:55.8]} 11. e4 {[%clk
0:02:52.3]} 11... e6 {[%clk 0:02:55.1]} 12. Nge2 {[%clk 0:02:49.5]} 12... a6
{[%clk 0:02:53.1]} 13. a4 {[%clk 0:02:48]} 13... Ne7 {[%clk 0:02:48.7]} 14. a5
{[%clk 0:02:47]} 14... Bg7 {[%clk 0:02:46.8]} 15. Ng3 {[%clk 0:02:43.7]} 15...
c5 {[%clk 0:02:45.8]} 16. exd5 {[%clk 0:02:37.1]} 16... Nxd5 {[%clk 0:02:30.6]}
17. Nxd5 {[%clk 0:02:35.9]} 17... exd5 {[%clk 0:02:31.5]} 18. Bd6 {[%clk
0:02:29.5]} 18... Bxd4 {[%clk 0:02:15.1]} 19. Qe2+ {[%clk 0:02:24.6]} 19... Ne5
{[%clk 0:02:14]} 20. Bxe5 {[%clk 0:02:24.3]} 20... O-O {[%clk 0:02:07.3]} 21.
Bxd4 {[%clk 0:02:16.9]} 21... Re8 {[%clk 0:01:58.9]} 22. Be5 {[%clk 0:02:15.5]}
22... Qd7 {[%clk 0:01:51.2]} 23. f4 {[%clk 0:02:13.9]} 23... f6 {[%clk
0:01:47.8]} 24. gxf6 {[%clk 0:02:12.8]} 1-0

[Event "Early-Titled-Tuesday-Blitz-February-27-2024"]
[Site "Chess.com"]
[Date "2024.02.27"]
[Round "4"]
[White "ilya2700"]
[Black "anasta10"]
[Result "0-1"]
[WhiteElo "2362"]
[BlackElo "2536"]
[TimeControl "180+1"]
[EndTime "8:34:45 PST"]
[Termination "anasta10 won by checkmate"]

1. e4 {[%clk 0:02:50.2]} 1... g6 {[%clk 0:02:59.8]} 2. d4 {[%clk 0:02:49.4]}
2... Bg7 {[%clk 0:03:00]} 3. Be3 {[%clk 0:02:49.9]} 3... d6 {[%clk 0:03:00.2]}
4. Nf3 {[%clk 0:02:50.6]} 4... a6 {[%clk 0:03:00.6]} 5. Bd3 {[%clk 0:02:50.5]}
5... b5 {[%clk 0:02:58.9]} 6. Nc3 {[%clk 0:02:51.1]} 6... Bb7 {[%clk 0:02:59.2]}
7. a3 {[%clk 0:02:48.6]} 7... Nd7 {[%clk 0:02:58]} 8. Qd2 {[%clk 0:02:48.7]}
8... c5 {[%clk 0:02:58]} 9. d5 {[%clk 0:02:46.1]} 9... Ngf6 {[%clk 0:02:57.4]}
10. O-O {[%clk 0:02:42.2]} 10... O-O {[%clk 0:02:47.3]} 11. b4 {[%clk
0:02:38.2]} 11... Rc8 {[%clk 0:02:44.4]} 12. Ne2 {[%clk 0:02:34.6]} 12... c4
{[%clk 0:02:44.1]} 13. Bxc4 {[%clk 0:02:30.5]} 13... Rxc4 {[%clk 0:02:43.6]} 14.
Qd3 {[%clk 0:02:14.7]} 14... Nxe4 {[%clk 0:02:29.7]} 15. Rac1 {[%clk 0:02:12.1]}
15... Nef6 {[%clk 0:02:25.9]} 16. Bd4 {[%clk 0:02:07.8]} 16... Bxd5 {[%clk
0:02:22.2]} 17. Bxf6 {[%clk 0:02:04.5]} 17... Nxf6 {[%clk 0:02:23.1]} 18. Nf4
{[%clk 0:02:02]} 18... Rxf4 {[%clk 0:02:21.8]} 19. Rfe1 {[%clk 0:02:02.4]} 19...
e5 {[%clk 0:02:16.8]} 20. Nd2 {[%clk 0:01:55.7]} 20... Rd4 {[%clk 0:02:11.7]}
21. Qe3 {[%clk 0:01:54.6]} 21... Ng4 {[%clk 0:02:09.9]} 22. Qe2 {[%clk
0:01:50.7]} 22... Qh4 {[%clk 0:02:07]} 23. h3 {[%clk 0:01:43.3]} 23... Nxf2
{[%clk 0:02:01.5]} 24. Nf3 {[%clk 0:01:34.1]} 24... Nxh3+ {[%clk 0:01:55.3]} 25.
gxh3 {[%clk 0:01:27.9]} 25... Qg3+ {[%clk 0:01:54.6]} 26. Qg2 {[%clk 0:01:25.7]}
26... Qxf3 {[%clk 0:01:53.9]} 27. Qf2 {[%clk 0:01:24.6]} 27... Qh1# {[%clk
0:01:52.9]} 0-1

[Event "Early-Titled-Tuesday-Blitz-February-27-2024"]
[Site "Chess.com"]
[Date "2024.02.27"]
[Round "4"]
[White "JaackCamel"]
[Black "Sjakkerntobi"]
[Result "1-0"]
[WhiteElo "2204"]
[BlackElo "2469"]
[TimeControl "180+1"]
[EndTime "8:34:45 PST"]
[Termination "JaackCamel won by resignation"]

1. d4 {[%clk 0:02:06.6]} 1... Nf6 {[%clk 0:02:56.5]} 2. c4 {[%clk 0:02:06.2]}
2... e6 {[%clk 0:02:56.4]} 3. Nc3 {[%clk 0:02:05.8]} 3... c5 {[%clk 0:02:57.2]}
4. d5 {[%clk 0:02:05.5]} 4... exd5 {[%clk 0:02:58.1]} 5. cxd5 {[%clk 0:02:05.3]}
5... d6 {[%clk 0:02:58.7]} 6. e4 {[%clk 0:02:04.5]} 6... g6 {[%clk 0:02:59.4]}
7. f4 {[%clk 0:02:04.2]} 7... Bg7 {[%clk 0:02:59.5]} 8. Bb5+ {[%clk 0:02:03.9]}
8... Nfd7 {[%clk 0:02:59.1]} 9. a4 {[%clk 0:02:02.4]} 9... O-O {[%clk
0:02:57.6]} 10. Nf3 {[%clk 0:02:01.6]} 10... Re8 {[%clk 0:02:53.7]} 11. O-O
{[%clk 0:02:00.9]} 11... Na6 {[%clk 0:02:54.1]} 12. Re1 {[%clk 0:02:00.2]} 12...
Nb4 {[%clk 0:02:54.5]} 13. h3 {[%clk 0:01:56]} 13... a6 {[%clk 0:02:54.2]} 14.
Bf1 {[%clk 0:01:55.3]} 14... Rb8 {[%clk 0:02:53.3]} 15. Bd2 {[%clk 0:01:52.7]}
15... Nf6 {[%clk 0:02:45.2]} 16. Qb3 {[%clk 0:01:39.4]} 16... b5 {[%clk
0:02:36.6]} 17. axb5 {[%clk 0:01:36.5]} 17... axb5 {[%clk 0:02:37.5]} 18. Bxb5
{[%clk 0:01:34.5]} 18... Rxb5 {[%clk 0:02:37.3]} 19. Nxb5 {[%clk 0:01:33.7]}
19... Qb6 {[%clk 0:02:38]} 20. Qc4 {[%clk 0:01:29.3]} 20... Bd7 {[%clk
0:02:26.6]} 21. Nc3 {[%clk 0:01:19.3]} 21... Nc2 {[%clk 0:02:18.9]} 22. Rac1
{[%clk 0:01:17.2]} 22... Nxe1 {[%clk 0:02:18.8]} 23. Rxe1 {[%clk 0:01:17]} 23...
Qb4 {[%clk 0:02:10.3]} 24. Qa6 {[%clk 0:01:12.7]} 24... Nxe4 {[%clk 0:02:03.4]}
25. Nxe4 {[%clk 0:01:10.8]} 25... Rxe4 {[%clk 0:02:04.3]} 26. Bxb4 {[%clk
0:01:10.2]} 1-0

[Event "Early-Titled-Tuesday-Blitz-February-27-2024"]
[Site "Chess.com"]
[Date "2024.02.27"]
[Round "4"]
[White "Casper"]
[Black "1977Ivan"]
[Result "0-1"]
[WhiteElo "2538"]
[BlackElo "2734"]
[TimeControl "180+1"]
[EndTime "8:34:48 PST"]
[Termination "1977Ivan won by checkmate"]

1. e4 {[%clk 0:03:00.1]} 1... e5 {[%clk 0:02:59.7]} 2. d4 {[%clk 0:02:59]} 2...
exd4 {[%clk 0:02:58.6]} 3. Qxd4 {[%clk 0:02:59.9]} 3... Nc6 {[%clk 0:02:58.9]}
4. Qc4 {[%clk 0:03:00.6]} 4... Nf6 {[%clk 0:02:54.9]} 5. Nc3 {[%clk 0:03:01.3]}
5... Bb4 {[%clk 0:02:48.9]} 6. Bd2 {[%clk 0:03:01.9]} 6... d6 {[%clk 0:02:42.2]}
7. O-O-O {[%clk 0:03:00.7]} 7... Be6 {[%clk 0:02:41.1]} 8. Qb5 {[%clk
0:02:57.4]} 8... O-O {[%clk 0:02:30.1]} 9. Qxb7 {[%clk 0:02:51.8]} 9... Bd7
{[%clk 0:02:27.5]} 10. Nd5 {[%clk 0:02:33.8]} 10... Bxd2+ {[%clk 0:02:24.9]} 11.
Rxd2 {[%clk 0:02:34.7]} 11... Nxe4 {[%clk 0:02:19.6]} 12. Re2 {[%clk 0:02:30.5]}
12... Rb8 {[%clk 0:02:07.9]} 13. Qxc7 {[%clk 0:02:28]} 13... Qg5+ {[%clk
0:02:07.5]} 14. Ne3 {[%clk 0:02:15.1]} 14... Nb4 {[%clk 0:01:24.9]} 15. Qxd7
{[%clk 0:01:50.8]} 15... Nxa2+ {[%clk 0:01:22.3]} 16. Kd1 {[%clk 0:01:46.9]}
16... Rxb2 {[%clk 0:01:19.2]} 17. Ke1 {[%clk 0:01:37.8]} 17... Rb1+ {[%clk
0:01:16.2]} 18. Nd1 {[%clk 0:01:37.6]} 18... Rxd1+ {[%clk 0:01:16.4]} 19. Kxd1
{[%clk 0:01:37.6]} 19... Qc1# {[%clk 0:01:17.2]} 0-1

[Event "Early-Titled-Tuesday-Blitz-February-27-2024"]
[Site "Chess.com"]
[Date "2024.02.27"]
[Round "4"]
[White "AlainBruxelles"]
[Black "only_strong_moves"]
[Result "1-0"]
[WhiteElo "2447"]
[BlackElo "2633"]
[TimeControl "180+1"]
[EndTime "8:35:12 PST"]
[Termination "AlainBruxelles won by resignation"]

1. d4 {[%clk 0:03:00.9]} 1... Nf6 {[%clk 0:02:59.9]} 2. c4 {[%clk 0:03:00.3]}
2... e6 {[%clk 0:03:00.6]} 3. Nc3 {[%clk 0:02:59.8]} 3... d5 {[%clk 0:03:00.8]}
4. Bg5 {[%clk 0:02:55.6]} 4... Bb4 {[%clk 0:02:55.9]} 5. e3 {[%clk 0:02:52.5]}
5... h6 {[%clk 0:02:52.6]} 6. Bh4 {[%clk 0:02:51.9]} 6... O-O {[%clk 0:02:52.3]}
7. a3 {[%clk 0:02:43.5]} 7... Be7 {[%clk 0:02:51]} 8. Bd3 {[%clk 0:02:41.7]}
8... b6 {[%clk 0:02:51]} 9. cxd5 {[%clk 0:02:40.7]} 9... Nxd5 {[%clk 0:02:44.9]}
10. Bxe7 {[%clk 0:02:36.4]} 10... Qxe7 {[%clk 0:02:45.8]} 11. Nge2 {[%clk
0:02:35.5]} 11... Bb7 {[%clk 0:02:44.3]} 12. O-O {[%clk 0:02:34.9]} 12... Nd7
{[%clk 0:02:38.2]} 13. e4 {[%clk 0:02:23.3]} 13... Nxc3 {[%clk 0:02:38.3]} 14.
bxc3 {[%clk 0:02:23.1]} 14... e5 {[%clk 0:02:37]} 15. Ng3 {[%clk 0:02:21.2]}
15... Rad8 {[%clk 0:02:21.4]} 16. f4 {[%clk 0:01:57.8]} 16... exd4 {[%clk
0:01:23.3]} 17. cxd4 {[%clk 0:01:55.4]} 17... c5 {[%clk 0:01:06.5]} 18. Nf5
{[%clk 0:01:50.3]} 18... Qe6 {[%clk 0:00:58.8]} 19. Qg4 {[%clk 0:01:43.2]} 19...
Qg6 {[%clk 0:00:56.8]} 20. Ne7+ {[%clk 0:01:42.4]} 1-0

[Event "Early-Titled-Tuesday-Blitz-February-27-2024"]
[Site "Chess.com"]
[Date "2024.02.27"]
[Round "4"]
[White "Polish_fighter3000"]
[Black "Dyadya81"]
[Result "1-0"]
[WhiteElo "3081"]
[BlackElo "2846"]
[TimeControl "180+1"]
[EndTime "8:35:20 PST"]
[Termination "Polish_fighter3000 won by resignation"]

1. e4 {[%clk 0:03:00.9]} 1... c6 {[%clk 0:03:00.4]} 2. d4 {[%clk 0:02:57.3]}
2... d5 {[%clk 0:03:00.7]} 3. e5 {[%clk 0:02:57.5]} 3... Bf5 {[%clk 0:03:00.4]}
4. Nf3 {[%clk 0:02:54.2]} 4... e6 {[%clk 0:03:00.3]} 5. Be2 {[%clk 0:02:54.9]}
5... Ne7 {[%clk 0:02:58.4]} 6. O-O {[%clk 0:02:54.6]} 6... c5 {[%clk 0:02:58.9]}
7. c4 {[%clk 0:02:43.2]} 7... Nbc6 {[%clk 0:02:58.7]} 8. dxc5 {[%clk 0:02:40.5]}
8... dxc4 {[%clk 0:02:57.6]} 9. Na3 {[%clk 0:02:21.1]} 9... Ng6 {[%clk
0:02:18.4]} 10. Be3 {[%clk 0:02:07.6]} 10... Ngxe5 {[%clk 0:01:45.6]} 11. Nxe5
{[%clk 0:02:08.5]} 11... Nxe5 {[%clk 0:01:45.8]} 12. Nxc4 {[%clk 0:02:07.7]}
12... Nc6 {[%clk 0:01:24.3]} 13. Qb3 {[%clk 0:02:00.1]} 13... Rb8 {[%clk
0:01:08]} 14. Rfd1 {[%clk 0:01:55.6]} 14... Qc7 {[%clk 0:01:02.9]} 15. Bf3
{[%clk 0:01:46.4]} 15... Be7 {[%clk 0:00:58.8]} 16. Nd6+ {[%clk 0:01:44.1]}
16... Bxd6 {[%clk 0:00:58.6]} 17. cxd6 {[%clk 0:01:45]} 17... Qd7 {[%clk
0:00:57.8]} 18. Bxc6 {[%clk 0:01:45.1]} 18... Qxc6 {[%clk 0:00:56.2]} 19. d7+
{[%clk 0:01:44.3]} 19... Ke7 {[%clk 0:00:49.7]} 20. Qb4+ {[%clk 0:01:44]} 20...
Kf6 {[%clk 0:00:47.9]} 21. Qh4+ {[%clk 0:01:39.6]} 1-0

[Event "Early-Titled-Tuesday-Blitz-February-27-2024"]
[Site "Chess.com"]
[Date "2024.02.27"]
[Round "4"]
[White "chesstrainer2042"]
[Black "Pliukha_Mikhail"]
[Result "1-0"]
[WhiteElo "2562"]
[BlackElo "2737"]
[TimeControl "180+1"]
[EndTime "8:35:25 PST"]
[Termination "chesstrainer2042 won by resignation"]

1. d4 {[%clk 0:03:00.9]} 1... Nf6 {[%clk 0:03:00.1]} 2. Nf3 {[%clk 0:03:01]}
2... e6 {[%clk 0:03:01]} 3. c4 {[%clk 0:03:01]} 3... d5 {[%clk 0:03:01.3]} 4. e3
{[%clk 0:02:59.3]} 4... c5 {[%clk 0:03:01.5]} 5. Nc3 {[%clk 0:02:59.6]} 5... Nc6
{[%clk 0:03:01.7]} 6. a3 {[%clk 0:02:59.3]} 6... a6 {[%clk 0:03:02]} 7. dxc5
{[%clk 0:02:59.4]} 7... Bxc5 {[%clk 0:03:01.7]} 8. b4 {[%clk 0:03:00.1]} 8...
Be7 {[%clk 0:03:01.4]} 9. Bb2 {[%clk 0:03:00.1]} 9... O-O {[%clk 0:03:01.7]} 10.
Qc2 {[%clk 0:03:00.7]} 10... dxc4 {[%clk 0:03:02.1]} 11. Bxc4 {[%clk 0:03:00.2]}
11... b5 {[%clk 0:03:02.4]} 12. Bd3 {[%clk 0:03:00.8]} 12... Bb7 {[%clk
0:03:02.7]} 13. Rd1 {[%clk 0:02:57.7]} 13... Qc7 {[%clk 0:03:02.6]} 14. Ne4
{[%clk 0:02:48.7]} 14... Nxe4 {[%clk 0:02:39.6]} 15. Bxe4 {[%clk 0:02:48.5]}
15... h6 {[%clk 0:02:40.3]} 16. Rc1 {[%clk 0:02:46.1]} 16... Rac8 {[%clk
0:02:38.6]} 17. Nd4 {[%clk 0:02:25.5]} 17... Bf6 {[%clk 0:02:07]} 18. Nxc6
{[%clk 0:02:23.1]} 18... Bxc6 {[%clk 0:00:56.2]} 19. Bxf6 {[%clk 0:02:20.6]}
19... Bxe4 {[%clk 0:00:43.1]} 20. Qxc7 {[%clk 0:02:19.9]} 20... Rxc7 {[%clk
0:00:44]} 21. Rxc7 {[%clk 0:02:20.4]} 21... gxf6 {[%clk 0:00:44.9]} 22. f3
{[%clk 0:02:20.7]} 22... Bd3 {[%clk 0:00:43.5]} 23. Kf2 {[%clk 0:02:15.7]} 23...
Bc4 {[%clk 0:00:42.6]} 24. Rd1 {[%clk 0:02:15.6]} 24... Ra8 {[%clk 0:00:37.5]}
25. Rcd7 {[%clk 0:02:10.6]} 25... Kg7 {[%clk 0:00:37.3]} 26. Rd8 {[%clk
0:02:10.2]} 26... Ra7 {[%clk 0:00:36]} 27. R1d7 {[%clk 0:02:10.7]} 27... Rxd7
{[%clk 0:00:35.6]} 28. Rxd7 {[%clk 0:02:11]} 1-0

[Event "Early-Titled-Tuesday-Blitz-February-27-2024"]
[Site "Chess.com"]
[Date "2024.02.27"]
[Round "4"]
[White "DenLaz"]
[Black "NovakCabarkapa"]
[Result "1-0"]
[WhiteElo "3038"]
[BlackElo "2820"]
[TimeControl "180+1"]
[EndTime "8:35:33 PST"]
[Termination "DenLaz won by resignation"]

1. d4 {[%clk 0:03:00.9]} 1... Nf6 {[%clk 0:02:58.1]} 2. c4 {[%clk 0:03:01.5]}
2... g6 {[%clk 0:02:58.5]} 3. g3 {[%clk 0:03:01.5]} 3... Bg7 {[%clk 0:02:58.6]}
4. Bg2 {[%clk 0:03:02.2]} 4... d6 {[%clk 0:02:59.2]} 5. Nc3 {[%clk 0:03:02.8]}
5... O-O {[%clk 0:02:59.7]} 6. Nf3 {[%clk 0:03:03.5]} 6... Nbd7 {[%clk
0:03:00.4]} 7. O-O {[%clk 0:03:04.2]} 7... e5 {[%clk 0:03:00.7]} 8. e4 {[%clk
0:03:04.9]} 8... Re8 {[%clk 0:03:01.3]} 9. h3 {[%clk 0:03:04.8]} 9... b6 {[%clk
0:03:01.6]} 10. Re1 {[%clk 0:03:01.5]} 10... exd4 {[%clk 0:03:01]} 11. Nxd4
{[%clk 0:03:01.4]} 11... Bb7 {[%clk 0:03:01.6]} 12. Nc2 {[%clk 0:02:42.3]} 12...
Nc5 {[%clk 0:02:59.5]} 13. f3 {[%clk 0:02:42.6]} 13... Nfd7 {[%clk 0:02:27.1]}
14. Be3 {[%clk 0:02:18.2]} 14... Ne5 {[%clk 0:02:26.4]} 15. Bf1 {[%clk 0:02:18]}
15... Nxf3+ {[%clk 0:01:49.3]} 16. Qxf3 {[%clk 0:02:15.1]} 16... Nxe4 {[%clk
0:01:49.9]} 17. Bd4 {[%clk 0:01:57.1]} 17... Nc5 {[%clk 0:01:22.2]} 18. Qf2
{[%clk 0:01:55.4]} 18... Qd7 {[%clk 0:01:15]} 19. Bxg7 {[%clk 0:01:51.5]} 19...
Kxg7 {[%clk 0:01:15]} 20. b4 {[%clk 0:01:51.8]} 20... Ne6 {[%clk 0:01:01.8]} 21.
h4 {[%clk 0:01:51]} 21... Kg8 {[%clk 0:00:36.1]} 22. Ne3 {[%clk 0:01:46.1]}
22... Nd4 {[%clk 0:00:34.2]} 23. Ned5 {[%clk 0:01:45.4]} 1-0

[Event "Early-Titled-Tuesday-Blitz-February-27-2024"]
[Site "Chess.com"]
[Date "2024.02.27"]
[Round "4"]
[White "AcostaPablo"]
[Black "mishanick"]
[Result "0-1"]
[WhiteElo "2636"]
[BlackElo "3080"]
[TimeControl "180+1"]
[EndTime "8:35:36 PST"]
[Termination "mishanick won by checkmate"]

1. d4 {[%clk 0:03:00.9]} 1... Nf6 {[%clk 0:02:58.7]} 2. c4 {[%clk 0:02:59.1]}
2... e6 {[%clk 0:02:58.9]} 3. Nc3 {[%clk 0:02:59.7]} 3... d5 {[%clk 0:02:59.3]}
4. Nf3 {[%clk 0:02:59]} 4... Nbd7 {[%clk 0:02:58.7]} 5. Bg5 {[%clk 0:02:58.9]}
5... h6 {[%clk 0:02:57.3]} 6. Bh4 {[%clk 0:02:58.6]} 6... c6 {[%clk 0:02:56.3]}
7. e3 {[%clk 0:02:56.5]} 7... Be7 {[%clk 0:02:56.9]} 8. Be2 {[%clk 0:02:47.9]}
8... O-O {[%clk 0:02:57.3]} 9. O-O {[%clk 0:02:46]} 9... dxc4 {[%clk 0:02:57.8]}
10. Bxc4 {[%clk 0:02:45.8]} 10... b5 {[%clk 0:02:58.2]} 11. Bd3 {[%clk
0:02:46.4]} 11... Bb7 {[%clk 0:02:58.8]} 12. Qe2 {[%clk 0:02:45.1]} 12... a6
{[%clk 0:02:57.6]} 13. a4 {[%clk 0:02:42.4]} 13... b4 {[%clk 0:02:54.8]} 14. Ne4
{[%clk 0:02:42.8]} 14... c5 {[%clk 0:02:53.8]} 15. Bxf6 {[%clk 0:02:18.4]} 15...
Bxf6 {[%clk 0:02:54.7]} 16. Nxc5 {[%clk 0:02:14.4]} 16... Nxc5 {[%clk
0:02:52.7]} 17. dxc5 {[%clk 0:02:15]} 17... Qa5 {[%clk 0:02:52.8]} 18. Rfc1
{[%clk 0:01:55.9]} 18... Rfc8 {[%clk 0:02:51.9]} 19. Nd4 {[%clk 0:01:37.8]}
19... Rxc5 {[%clk 0:02:50.4]} 20. Nb3 {[%clk 0:01:33.3]} 20... Rxc1+ {[%clk
0:02:48.7]} 21. Rxc1 {[%clk 0:01:33]} 21... Qd5 {[%clk 0:02:26.9]} 22. Qf3
{[%clk 0:01:30.6]} 22... Qxd3 {[%clk 0:02:22]} 23. Qxb7 {[%clk 0:01:28]} 23...
Rd8 {[%clk 0:02:22.7]} 24. Nd4 {[%clk 0:01:24.6]} 24... e5 {[%clk 0:02:16.7]}
25. Nf3 {[%clk 0:00:14.5]} 25... Qd1+ {[%clk 0:02:14.7]} 26. Rxd1 {[%clk
0:00:12.6]} 26... Rxd1+ {[%clk 0:02:15.6]} 27. Ne1 {[%clk 0:00:11.3]} 27...
Rxe1# {[%clk 0:02:15.6]} 0-1